lending/lending_fUSD_20250122
["ID","MTS","AMOUNT","RATE_DAILY","PERIOD"]
[350037189,1737586246671,-722.34,0.00021976,2]
[350037192,1737586246682,-500.0,0.00021976,2]
[350037193,1737586246694,-500.0,0.00021976,2]
[350037195,1737586246703,-1138.07,0.00021976,2]
[350037198,1737586246713,-1022.84,0.00021976,2]
[350037200,1737586246722,-500.0,0.00021976,2]
[350037202,1737586246732,-500.0,0.00021976,2]
[350037203,1737586246741,-1686.91,0.00021976,2]
[350037206,1737586246750,-500.0,0.00021976,2]
[350037208,1737586246759,-1552.47,0.00021976,2]
[350037210,1737586246768,-500.0,0.00021976,2]
[350037212,1737586246778,-445.29581002,0.00021976,2]
[350037213,1737586246787,-893.57,0.00021976,2]
[350037215,1737586246797,-500.0,0.00021976,2]
[350037217,1737586246807,-500.0,0.00021976,2]
[350037220,1737586246818,-317.47602052,0.00021977,4]
[350037222,1737586246827,-163.0137791,0.00021977,4]
[350037224,1737586246836,-500.0,0.00021977,2]
[350037225,1737586246846,-623.14,0.00021977,2]
[350037227,1737586246855,-500.0,0.00021977,2]
[350037228,1737586246865,-500.0,0.00021977,2]
[350037229,1737586246874,-500.0,0.00021977,2]
[350037230,1737586246883,-500.0,0.00021977,2]
[350037231,1737586246893,-500.0,0.00021977,2]
[350037232,1737586246903,-500.0,0.00021977,2]
[350037233,1737586246913,-500.0,0.00021977,2]
[350037234,1737586246922,-500.0,0.00021977,2]
[350037235,1737586246931,-500.0,0.00021977,2]
[350037236,1737586246943,-500.0,0.00021977,2]
[350037237,1737586246952,-572.47,0.00021977,2]
[350037239,1737586246961,-500.0,0.00021977,2]
[350037241,1737586246970,-500.0,0.00021977,2]
[350037243,1737586246979,-500.0,0.00021977,2]
[350037245,1737586246988,-500.0,0.00021977,2]
[350037247,1737586246997,-186.396481,0.00021977,7]
[350037249,1737586247006,-500.0,0.00021977,2]
[350037251,1737586247015,-186.396481,0.00021977,7]
[350037253,1737586247024,-151.0,0.00021977,7]
[350037255,1737586247033,-500.0,0.00021977,2]
[350037257,1737586247042,-500.0,0.00021977,2]
[350037258,1737586247051,-500.0,0.00021977,2]
[350037260,1737586247061,-500.0,0.00021977,2]
[350037262,1737586247070,-500.0,0.00021977,2]
[350037265,1737586247079,-500.0,0.00021977,2]
[350037267,1737586247088,-500.0,0.00021977,2]
[350037268,1737586247097,-616.89,0.00021977,2]
[350037270,1737586247107,-543.11,0.00021977,2]
[350037272,1737586247116,-500.0,0.00021977,2]
[350037274,1737586247125,-529.33,0.00021977,2]
[350037276,1737586247134,-521.01,0.00021977,2]
[350037278,1737586247143,-750.94,0.00021977,2]
[350037280,1737586247153,-1705.82,0.00021977,2]
[350037282,1737586247163,-222.05611287,0.00021977,2]
[350037285,1737586247174,-1180.52,0.00021977,2]
[350037287,1737586247183,-500.0,0.00021977,2]
[350037288,1737586247193,-3098.86,0.00021977,2]
[350037290,1737586247203,-500.0,0.00021977,2]
[350037293,1737586247213,-2299.89,0.00021977,2]
[350037295,1737586247222,-500.0,0.00021977,2]
[350037296,1737586247231,-1018.67,0.00021977,2]
[350037298,1737586247241,-500.0,0.00021977,2]
[350037301,1737586247251,-500.0,0.00021977,2]
[350037302,1737586247260,-1226.03,0.00021977,2]
[350037305,1737586247269,-500.0,0.00021977,2]
[350037307,1737586247278,-849.41,0.00021977,2]
[350037309,1737586247288,-500.0,0.00021977,2]
[350037310,1737586247297,-2553.19,0.00021977,2]
[350037313,1737586247306,-500.0,0.00021977,2]
[350037315,1737586247315,-595.45,0.00021977,2]
[350037317,1737586247325,-500.0,0.00021977,2]
[350037319,1737586247334,-1412.58,0.00021977,2]
[350037320,1737586247343,-500.0,0.00021977,2]
[350037321,1737586247352,-621.64,0.00021977,2]
[350037322,1737586247359,-500.0,0.00021977,2]
[350037323,1737586247368,-500.0,0.00021977,2]
[350037324,1737586247376,-743.31,0.00021977,2]
[350037325,1737586247384,-500.0,0.00021977,2]
[350037326,1737586247392,-948.07,0.00021977,2]
[350037327,1737586247400,-500.0,0.00021977,2]
[350037328,1737586247408,-813.35,0.00021977,2]
[350037329,1737586247416,-500.0,0.00021977,2]
[350037330,1737586247424,-585.231409,0.00021977,7]
[350037331,1737586247433,-585.231409,0.00021977,7]
[350037332,1737586247444,-500.0,0.00021977,2]
[350037333,1737586247453,-500.0,0.00021977,2]
[350037334,1737586247463,-500.0,0.00021977,2]
[350037335,1737586247473,-500.0,0.00021977,2]
[350037336,1737586247482,-560.95,0.00021977,2]
[350037337,1737586247491,-182.599567,0.00021978,7]
[350037338,1737586247501,-182.599567,0.00021978,7]
[350037340,1737586247510,-150.0,0.0002198,4]
[350037341,1737586247520,-317.47602052,0.00021981,4]
[350037342,1737586247529,-163.0137791,0.00021981,4]
[350037343,1737586247538,-151.0,0.00021985,7]
[350037344,1737586247547,-275.792104,0.00021985,7]
[350037345,1737586247557,-317.47602052,0.00021985,4]
[350037346,1737586247566,-163.0137791,0.00021985,4]
[350037347,1737586247576,-150.0,0.00021987,4]
[350037348,1737586247585,-317.47602052,0.00021989,4]
[350037349,1737586247595,-163.0137791,0.00021989,4]
[350037350,1737586247604,-1907.39143557,0.0002199,2]
[350037351,1737586247615,-1907.39143557,0.0002199,2]
[350037352,1737586247624,-1907.39143557,0.0002199,2]
[350037353,1737586247634,-150.0,0.00021993,4]
[350037354,1737586247646,-317.47602052,0.00021993,4]
[350037355,1737586247655,-163.0137791,0.00021993,4]
[350037356,1737586247664,-150.0,0.00021994,4]
[350037357,1737586247674,-4895.79987028,0.00021997,2]
[350037358,1737586247683,-317.47602052,0.00021998,4]
[350037359,1737586247695,-163.0137791,0.00021998,4]
[350037360,1737586247704,-1000.0,0.00021999,2]
[350037361,1737586247716,-756.29,0.00021999,2]
[350037362,1737586247726,-1914.35373804,0.00022,2]
[350037363,1737586247735,-4507470.50179546,0.00022,2]
[350037364,1737586247744,-9179731.41528365,0.00022,2]
[350037365,1737586247753,-2127671.35647912,0.00022,2]
[350037366,1737586247916,-422.97571748,0.00022,2]
[350037367,1737586247928,-1031.15793113,0.00022,2]
[350037368,1737586248233,-500.0,0.00021155,2]
[350037369,1737586248243,-1105.0,0.00021398,2]
[350037370,1737586248252,-295.0,0.00021661,2]
[350037371,1737586248262,-326.364747,0.000219,2]
[350037372,1737586248271,-181.66939463,0.000219,2]
[350037373,1737586248283,-771.59859325,0.000219,2]
[350037374,1737586248293,-579.93748293,0.00021943,2]
[350037375,1737586248305,-258.85251707,0.00021943,2]
[350037376,1737586248315,-326.364747,0.00021977,7]
[350037377,1737586248324,-456.63273593,0.00022,2]
[350037378,1737586248335,-4169.4946009,0.00022,2]
[350037379,1737586248347,-140368.0,0.00022,2]
[350037380,1737586248366,-422.25836631,0.00022,2]
[350037381,1737586248648,-500.0,0.00021154,2]
[350037382,1737586248657,-500.0,0.00021428,2]
[350037383,1737586248666,-326.364747,0.00021429,2]
[350037384,1737586248676,-326.364747,0.00021703,2]
[350037385,1737586248687,-326.364747,0.000219,2]
[350037386,1737586248696,-326.364747,0.00021977,7]
[350037387,1737586248705,-5761.16957955,0.00022,2]
[350037388,1737586248879,-19870.7658319,0.00022,2]
[350037389,1737586248893,-755.57547016,0.00022,2]
[350037390,1737586248917,-279.29,0.00021702,2]
[350037391,1737586248926,-291248.85152933,0.00022,2]
[350037392,1737586248939,-12895.65277055,0.00022,2]
[350037393,1737586249199,-500.0,0.00021154,2]
[350037394,1737586249208,-189.997488,0.00021154,2]
[350037395,1737586249218,-124.81828327,0.00021155,2]
[350037396,1737586391738,352.400808,0.00021929,120]
[350037397,1737586393935,2000.0,0.00021929,120]
[350037398,1737586405174,200.0,0.00021929,120]
[350037399,1737586692971,389.99,0.00010137,2]
[350037401,1737586823191,-1081.75797117,0.00013282,2]
[350037402,1737586823214,-1058.0,0.00013981,2]
[350037403,1737586823237,-1058.0,0.00014716,2]
[350037404,1737586823259,-1058.0,0.00015491,2]
[350037405,1737586823281,-1058.0,0.00016306,2]
[350037406,1737586823303,-736.96261564,0.00016306,2]
[350037407,1737586823326,-389.99,0.00016813,2]
[350037408,1737586823349,-1058.0,0.00017165,2]
[350037409,1737586823372,-1955.0,0.000177,2]
[350037410,1737586823394,-1058.0,0.00018023,2]
[350037411,1737586823417,-500.0,0.00018548,2]
[350037412,1737586823440,-629.10260947,0.00018769,2]
[350037413,1737586823462,-1058.0,0.00018924,2]
[350037414,1737586823486,-206.12,0.0001935,2]
[350037415,1737586823508,-300.0,0.00019399,2]
[350037416,1737586823531,-200.0,0.00019432,2]
[350037417,1737586823555,-366.64,0.00019515,2]
[350037418,1737586823578,-181.47,0.00019736,2]
[350037419,1737586823600,-1058.0,0.0001987,2]
[350037420,1737586824355,1044.178653,0.00017932,2]
[350037421,1737586839467,-173.47,0.00019974,2]
[350037422,1737586839490,-206.12,0.00020066,2]
[350037423,1737586839513,-1000.0,0.00020124,2]
[350037424,1737586839536,-154.04,0.00020304,2]
[350037425,1737586848009,-1021.0,0.00020548,4]
[350037426,1737586848031,-250.0,0.00020572,2]
[350037427,1737586848053,-250.0,0.00020682,2]
[350037428,1737586848076,-181.47,0.00020723,2]
[350037429,1737586848097,-206.12,0.00020782,2]
[350037430,1737586848122,-200.0,0.00020784,2]
[350037431,1737586848149,-1302.55815072,0.00020798,2]
[350037432,1737586932295,-1000.0,0.00020212,2]
[350037434,1737586993504,2000.0,0.00021929,120]
[350037435,1737587004370,200.0,0.00021929,120]
[350037455,1737587431865,-400.35865647,0.00018181,2]
[350037456,1737587431993,-634.96134353,0.00018181,2]
[350037457,1737587432003,-250.0,0.00019979,2]
[350037458,1737587432013,-30.51456683,0.0002004,2]
[350037459,1737587432028,-2155.59247144,0.0002004,2]
[350037460,1737587437309,-21713.89296173,0.0002004,2]
[350037461,1737587437319,-693.26,0.00020107,2]
[350037462,1737587437329,-3226.32,0.0002015,2]
[350037463,1737587437340,-250.0,0.0002019,2]
[350037464,1737587437350,-2705.0,0.00020193,2]
[350037465,1737587437359,-1179.85,0.00020212,2]
[350037466,1737587437368,-173.81,0.00020252,2]
[350037467,1737587437378,-1035.32,0.00020445,2]
[350037468,1737587437387,-20117.24207607,0.00020668,2]
[350037469,1737587437398,-152.0,0.00020765,3]
[350037470,1737587437408,-438.78014798,0.00020789,2]
[350037471,1737587437418,-282.59524408,0.00020798,2]
[350037472,1737587437430,-438.78014798,0.00020809,2]
[350037473,1737587437439,-1585.1533948,0.00020817,2]
[350037474,1737587437449,-675.33,0.00020821,2]
[350037475,1737587437458,-281.30352013,0.00020826,2]
[350037476,1737587437468,-438.78014798,0.00020835,2]
[350037477,1737587437477,-281.30352013,0.00020835,2]
[350037478,1737587437486,-1585.1533948,0.00020839,2]
[350037479,1737587437496,-438.78014798,0.0002084,2]
[350037480,1737587437506,-1058.0,0.00020864,2]
[350037481,1737587437516,-150.0,0.00020866,2]
[350037482,1737587437525,-438.78014798,0.00020869,2]
[350037483,1737587437535,-200.0,0.00020877,2]
[350037484,1737587437545,-281.30352013,0.00020914,2]
[350037485,1737587437555,-1585.1533948,0.00020916,2]
[350037486,1737587437564,-5000.0,0.00020921,2]
[350037487,1737587437574,-1000.0,0.00020921,2]
[350037488,1737587437585,-8547.80559132,0.00020924,2]
[350037489,1737587437594,-307.60077035,0.00020924,2]
[350037490,1737587437604,-8338.36872773,0.00020924,2]
[350037491,1737587437613,-1585.1533948,0.00020928,2]
[350037492,1737587437623,-281.30352013,0.00020939,2]
[350037493,1737587437633,-281.30352013,0.00020941,2]
[350037494,1737587437643,-1489.6857,0.00020991,2]
[350037495,1737587437652,-1208.6144,0.00020991,2]
[350037497,1737587437661,-866.101,0.00021002,2]
[350037499,1737587437671,-295.12,0.00021011,2]
[350037500,1737587437684,-500.0,0.0002102,2]
[350037502,1737587437694,-1047.92,0.0002102,2]
[350037503,1737587437704,-592.19,0.0002102,2]
[350037504,1737587437713,-1170.98,0.0002102,2]
[350037505,1737587437723,-467.901684,0.0002102,2]
[350037507,1737587437732,-500.0,0.0002102,2]
[350037509,1737587437741,-500.0,0.0002102,2]
[350037511,1737587437750,-500.0,0.0002102,2]
[350037513,1737587437760,-500.0,0.0002102,2]
[350037515,1737587437769,-159.291083,0.0002102,2]
[350037517,1737587437778,-500.0,0.0002102,2]
[350037519,1737587437788,-839.7,0.0002102,2]
[350037521,1737587437799,-159.175837,0.0002102,2]
[350037522,1737587437809,-500.0,0.0002102,2]
[350037524,1737587437819,-514.66,0.0002102,2]
[350037527,1737587437828,-500.0,0.0002102,2]
[350037531,1737587437839,-500.0,0.0002102,2]
[350037534,1737587437848,-349.54773,0.0002102,2]
[350037536,1737587437857,-644.38,0.0002102,2]
[350037538,1737587437866,-1267.22,0.0002102,2]
[350037539,1737587437875,-527.41,0.0002102,2]
[350037541,1737587437884,-757.64,0.0002102,2]
[350037543,1737587437894,-587.07,0.0002102,2]
[350037545,1737587437902,-500.0,0.0002102,2]
[350037547,1737587437911,-500.0,0.0002102,2]
[350037549,1737587437920,-500.0,0.0002102,2]
[350037551,1737587437931,-500.0,0.0002102,2]
[350037553,1737587437941,-1083.41,0.0002102,2]
[350037555,1737587437950,-976.46,0.0002102,2]
[350037557,1737587437959,-500.0,0.0002102,2]
[350037558,1737587437968,-1928.44,0.0002102,2]
[350037559,1737587437978,-774.08,0.0002102,2]
[350037560,1737587437986,-760.33,0.0002102,2]
[350037561,1737587437995,-1126.5,0.0002102,2]
[350037562,1737587438004,-1406.58,0.0002102,2]
[350037563,1737587438013,-500.0,0.0002102,2]
[350037564,1737587438023,-669.68,0.0002102,2]
[350037565,1737587438032,-595.78,0.0002102,2]
[350037566,1737587438044,-1459.49,0.0002102,2]
[350037567,1737587438053,-500.0,0.0002102,2]
[350037568,1737587438062,-790.3,0.0002102,2]
[350037569,1737587438072,-500.0,0.0002102,2]
[350037571,1737587438081,-500.0,0.0002102,2]
[350037573,1737587438091,-500.0,0.0002102,2]
[350037575,1737587438100,-500.0,0.0002102,2]
[350037577,1737587438109,-1206.96,0.0002102,2]
[350037579,1737587438119,-500.0,0.0002102,2]
[350037581,1737587438130,-500.0,0.0002102,2]
[350037583,1737587438139,-568.56,0.0002102,2]
[350037585,1737587438148,-500.0,0.0002102,2]
[350037587,1737587438157,-1180.29,0.0002102,2]
[350037589,1737587438166,-756.52,0.0002102,2]
[350037591,1737587438178,-500.0,0.0002102,2]
[350037593,1737587438188,-1495.09,0.0002102,2]
[350037595,1737587438197,-1816.63,0.0002102,2]
[350037597,1737587438206,-500.0,0.0002102,2]
[350037599,1737587438215,-500.0,0.0002102,2]
[350037601,1737587438224,-500.0,0.0002102,2]
[350037603,1737587438234,-500.0,0.0002102,2]
[350037605,1737587438243,-500.0,0.0002102,2]
[350037607,1737587438252,-500.0,0.0002102,2]
[350037609,1737587438260,-500.0,0.0002102,2]
[350037611,1737587438269,-1722.84,0.0002102,2]
[350037612,1737587438278,-500.0,0.0002102,2]
[350037614,1737587438287,-500.0,0.0002102,2]
[350037616,1737587438296,-500.0,0.0002102,2]
[350037618,1737587438305,-500.0,0.0002102,2]
[350037620,1737587438315,-500.0,0.0002102,2]
[350037622,1737587438324,-585.2,0.0002102,2]
[350037624,1737587438334,-857.95,0.0002102,2]
[350037626,1737587438343,-500.0,0.0002102,2]
[350037628,1737587438353,-500.0,0.0002102,2]
[350037630,1737587438362,-408021.2263,0.00021021,2]
[350037632,1737587438371,-248.09,0.00021024,2]
[350037634,1737587438380,-8547.80559132,0.00021032,2]
[350037636,1737587438388,-8338.36872768,0.00021032,2]
[350037638,1737587438398,-472.55090637,0.00021053,2]
[350037640,1737587438407,-17329.879,0.00021054,2]
[350037642,1737587438415,-788.945,0.00021054,2]
[350037644,1737587438424,-1000.0,0.00021055,2]
[350037646,1737587438434,-2168.84822254,0.00021061,2]
[350037648,1737587438443,-152.04421849,0.00021073,2]
[350037650,1737587438452,-152.0414623,0.00021073,2]
[350037652,1737587438461,-151.04188923,0.00021073,2]
[350037654,1737587438470,-500.941152,0.00021073,2]
[350037656,1737587438480,-500.0,0.00021073,2]
[350037657,1737587438490,-164.41912276,0.00021073,2]
[350037659,1737587438499,-6575.5289,0.00021099,2]
[350037662,1737587438508,-217.6129,0.00021099,2]
[350037664,1737587438518,-15353.89,0.000211,2]
[350037666,1737587438527,-500.0,0.00021118,2]
[350037668,1737587438537,-500.0,0.00021121,2]
[350037670,1737587438546,-500.0,0.00021121,2]
[350037672,1737587438557,-500.0,0.00021121,2]
[350037674,1737587438566,-500.0,0.00021121,2]
[350037676,1737587438575,-500.0,0.00021121,2]
[350037678,1737587438584,-500.0,0.00021121,2]
[350037679,1737587438594,-500.0,0.00021121,2]
[350037681,1737587438604,-500.0,0.00021121,2]
[350037683,1737587438613,-500.0,0.00021121,2]
[350037685,1737587438622,-250.92775964,0.00021121,2]
[350037687,1737587438631,-500.0,0.00021121,2]
[350037689,1737587438640,-500.0,0.00021121,2]
[350037691,1737587438649,-505.67130075,0.00021121,2]
[350037692,1737587438658,-500.0,0.00021121,2]
[350037694,1737587438667,-500.0,0.00021121,2]
[350037696,1737587438677,-506.26008731,0.00021121,2]
[350037698,1737587438685,-502.971007,0.00021121,2]
[350037700,1737587438694,-500.0,0.00021121,2]
[350037702,1737587438703,-505.16938341,0.00021121,2]
[350037704,1737587438712,-508.36490632,0.00021121,2]
[350037705,1737587438721,-600.94935269,0.00021121,2]
[350037707,1737587438730,-500.0,0.00021121,2]
[350037709,1737587438739,-500.0,0.00021121,2]
[350037711,1737587438748,-500.0,0.00021121,2]
[350037713,1737587438757,-504.62081334,0.00021121,2]
[350037715,1737587438766,-500.0,0.00021121,2]
[350037717,1737587438775,-500.0,0.00021121,2]
[350037719,1737587438784,-500.0,0.00021121,2]
[350037721,1737587438794,-514.61640605,0.00021121,2]
[350037723,1737587438804,-500.0,0.00021121,2]
[350037725,1737587438813,-500.0,0.00021121,2]
[350037727,1737587438822,-500.0,0.00021121,2]
[350037729,1737587438831,-437.65496733,0.00021121,2]
[350037731,1737587438840,-500.0,0.00021121,2]
[350037733,1737587438849,-500.0,0.00021121,2]
[350037735,1737587438858,-500.0,0.00021121,2]
[350037737,1737587438868,-500.0,0.00021121,2]
[350037739,1737587438877,-500.0,0.00021121,2]
[350037741,1737587438887,-500.0,0.00021121,2]
[350037743,1737587438896,-512.19507495,0.00021121,2]
[350037745,1737587438906,-500.0,0.00021121,2]
[350037747,1737587438915,-500.0,0.00021121,2]
[350037749,1737587438924,-508.81130336,0.00021121,2]
[350037750,1737587438935,-500.0,0.00021121,2]
[350037752,1737587438944,-500.0,0.00021121,2]
[350037754,1737587438953,-500.0,0.00021121,2]
[350037756,1737587438963,-500.0,0.00021121,2]
[350037757,1737587438972,-500.0,0.00021121,2]
[350037759,1737587438982,-516.43163828,0.00021121,2]
[350037760,1737587438991,-500.0,0.00021121,2]
[350037761,1737587439000,-500.0,0.00021121,2]
[350037762,1737587439009,-500.0,0.00021121,2]
[350037763,1737587439019,-500.0,0.00021121,2]
[350037764,1737587439032,-500.0,0.00021121,2]
[350037765,1737587439042,-500.0,0.00021121,2]
[350037766,1737587439051,-500.0,0.00021121,2]
[350037767,1737587439060,-501.48908154,0.00021121,2]
[350037768,1737587439071,-500.0,0.00021121,2]
[350037769,1737587439080,-500.0,0.00021121,2]
[350037770,1737587439090,-500.0,0.00021121,2]
[350037771,1737587439100,-500.0,0.00021121,2]
[350037772,1737587439109,-500.0,0.00021121,2]
[350037773,1737587439118,-500.0,0.00021121,2]
[350037774,1737587439127,-300.0,0.00021121,2]
[350037775,1737587439136,-500.0,0.00021121,2]
[350037776,1737587439146,-500.0,0.00021121,2]
[350037777,1737587439156,-500.0,0.00021121,2]
[350037778,1737587439166,-500.0,0.00021121,2]
[350037779,1737587439175,-500.0,0.00021121,2]
[350037780,1737587439185,-500.0,0.00021121,2]
[350037781,1737587439196,-500.0,0.00021121,2]
[350037782,1737587439205,-500.0,0.00021121,2]
[350037783,1737587439215,-500.0,0.00021121,2]
[350037784,1737587439224,-500.0,0.00021121,2]
[350037785,1737587439233,-500.0,0.00021121,2]
[350037786,1737587439243,-501.05069201,0.00021121,2]
[350037787,1737587439252,-500.0,0.00021121,2]
[350037788,1737587439261,-500.0,0.00021121,2]
[350037789,1737587439271,-500.0,0.00021121,2]
[350037790,1737587439281,-500.0,0.00021121,2]
[350037791,1737587439290,-500.0,0.00021121,2]
[350037792,1737587439299,-500.0,0.00021121,2]
[350037793,1737587439310,-500.0,0.00021121,2]
[350037794,1737587439320,-500.0,0.00021121,2]
[350037795,1737587439329,-500.0,0.00021121,2]
[350037796,1737587439339,-500.0,0.00021121,2]
[350037797,1737587439348,-500.0,0.00021121,2]
[350037798,1737587439357,-230.3307923,0.00021121,2]
[350037799,1737587439366,-500.0,0.00021121,2]
[350037800,1737587439376,-500.0,0.00021121,2]
[350037801,1737587439385,-471.11877587,0.00021121,2]
[350037802,1737587439395,-500.0,0.00021121,2]
[350037803,1737587439405,-500.0,0.00021121,2]
[350037804,1737587439414,-574.18726845,0.00021121,2]
[350037805,1737587439424,-500.0,0.00021121,2]
[350037806,1737587439436,-500.0,0.00021121,2]
[350037807,1737587439445,-500.0,0.00021121,2]
[350037808,1737587439454,-500.0,0.00021121,2]
[350037809,1737587439463,-500.0,0.00021121,2]
[350037810,1737587439473,-500.0,0.00021121,2]
[350037811,1737587439482,-500.0,0.00021121,2]
[350037812,1737587439491,-500.0,0.00021121,2]
[350037813,1737587439501,-500.0,0.00021121,2]
[350037814,1737587439510,-500.0,0.00021121,2]
[350037815,1737587439519,-502.42680597,0.00021121,2]
[350037816,1737587439528,-500.0,0.00021121,2]
[350037817,1737587439538,-500.0,0.00021121,2]
[350037818,1737587439549,-500.0,0.00021121,2]
[350037819,1737587439559,-500.0,0.00021121,2]
[350037820,1737587439568,-500.0,0.00021121,2]
[350037821,1737587439578,-500.0,0.00021121,2]
[350037822,1737587439587,-500.0,0.00021121,2]
[350037823,1737587439597,-500.0,0.00021121,2]
[350037824,1737587439608,-502.63964997,0.00021121,2]
[350037825,1737587439617,-500.0,0.00021121,2]
[350037826,1737587439627,-500.0,0.00021121,2]
[350037827,1737587439636,-500.0,0.00021121,2]
[350037828,1737587439645,-500.0,0.00021121,2]
[350037829,1737587439655,-500.0,0.00021121,2]
[350037830,1737587439667,-500.0,0.00021121,2]
[350037831,1737587439684,-500.0,0.00021121,2]
[350037832,1737587439699,-500.0,0.00021121,2]
[350037833,1737587439709,-500.0,0.00021121,2]
[350037834,1737587439719,-500.0,0.00021121,2]
[350037835,1737587439729,-500.0,0.00021121,2]
[350037836,1737587439738,-500.0,0.00021121,2]
[350037837,1737587439748,-500.0,0.00021121,2]
[350037838,1737587439757,-500.0,0.00021121,2]
[350037839,1737587439766,-500.0,0.00021121,2]
[350037840,1737587439776,-500.0,0.00021121,2]
[350037841,1737587439785,-500.0,0.00021121,2]
[350037842,1737587439794,-500.0,0.00021121,2]
[350037843,1737587439803,-500.0,0.00021121,2]
[350037844,1737587439813,-500.0,0.00021121,2]
[350037845,1737587439822,-500.0,0.00021121,2]
[350037846,1737587439832,-500.0,0.00021121,2]
[350037847,1737587439841,-8547.80559132,0.00021141,2]
[350037848,1737587439851,-8338.36872768,0.00021141,2]
[350037849,1737587439860,-254.31,0.0002115,2]
[350037851,1737587439869,-253.39,0.0002115,2]
[350037853,1737587439879,-500.0,0.00021153,2]
[350037854,1737587439888,-500.0,0.00021153,2]
[350037855,1737587439897,-500.0,0.00021153,2]
[350037856,1737587439906,-500.0,0.00021153,2]
[350037857,1737587439916,-500.0,0.00021153,2]
[350037858,1737587439925,-500.0,0.00021153,2]
[350037859,1737587439935,-500.58910128,0.00021153,2]
[350037860,1737587439944,-500.0,0.00021153,2]
[350037861,1737587439953,-500.0,0.00021153,2]
[350037862,1737587439962,-500.0,0.00021153,2]
[350037863,1737587439971,-500.0,0.00021153,2]
[350037864,1737587439980,-500.0,0.00021153,2]
[350037865,1737587439990,-500.0,0.00021153,2]
[350037866,1737587439999,-500.0,0.00021153,2]
[350037867,1737587440008,-500.0,0.00021153,2]
[350037868,1737587440018,-500.0,0.00021153,2]
[350037869,1737587440028,-500.0,0.00021153,2]
[350037870,1737587440039,-500.0,0.00021153,2]
[350037871,1737587440049,-500.0,0.00021153,2]
[350037872,1737587440059,-500.0,0.00021153,2]
[350037873,1737587440069,-500.0,0.00021153,2]
[350037874,1737587440079,-500.0,0.00021153,2]
[350037875,1737587440088,-500.0,0.00021153,2]
[350037876,1737587440098,-500.0,0.00021153,2]
[350037877,1737587440107,-500.0,0.00021153,2]
[350037878,1737587440120,-500.0,0.00021153,2]
[350037879,1737587440131,-500.0,0.00021153,2]
[350037880,1737587440141,-503.1870207,0.00021153,2]
[350037881,1737587440150,-500.0,0.00021153,2]
[350037882,1737587440159,-500.0,0.00021153,2]
[350037883,1737587440169,-500.0,0.00021153,2]
[350037884,1737587440179,-500.0,0.00021153,2]
[350037885,1737587440189,-500.0,0.00021153,2]
[350037886,1737587440198,-500.0,0.00021153,2]
[350037887,1737587440208,-500.0,0.00021153,2]
[350037888,1737587440217,-500.0,0.00021153,2]
[350037889,1737587440230,-500.0,0.00021153,2]
[350037890,1737587440239,-500.0,0.00021153,2]
[350037891,1737587440249,-500.0,0.00021153,2]
[350037892,1737587440259,-500.0,0.00021153,2]
[350037893,1737587440268,-500.0,0.00021153,2]
[350037894,1737587440278,-500.0,0.00021153,2]